fUST/lending_fUST_20241102
["ID","MTS","AMOUNT","RATE_DAILY","PERIOD"]
[341159542,1730487046716,-604.95013882,0.00033145,4]
[341159543,1730487046726,-500.0,0.00033145,4]
[341159544,1730487046735,-500.0,0.00033145,4]
[341159545,1730487046744,-500.0,0.00033145,4]
[341159546,1730487046753,-1025.82,0.00033145,4]
[341159547,1730487046763,-556.08,0.00033145,4]
[341159548,1730487046775,-500.0,0.00033145,4]
[341159549,1730487046784,-500.0,0.00033145,4]
[341159550,1730487046793,-500.0,0.00033145,4]
[341159551,1730487046802,-500.0,0.00033145,4]
[341159552,1730487046812,-500.0,0.00033145,4]
[341159553,1730487046822,-500.0,0.00033145,4]
[341159554,1730487046831,-500.0,0.00033145,4]
[341159555,1730487046841,-500.0,0.00033145,4]
[341159556,1730487046850,-500.0,0.00033145,4]
[341159557,1730487046859,-500.0,0.00033145,4]
[341159558,1730487046869,-500.0,0.00033145,4]
[341159559,1730487046878,-500.0,0.00033145,4]
[341159560,1730487046887,-500.0,0.00033145,4]
[341159561,1730487046897,-500.0,0.00033145,4]
[341159562,1730487046906,-500.0,0.00033145,4]
[341159563,1730487046916,-500.0,0.00033145,4]
[341159564,1730487046937,-500.0,0.00033145,4]
[341159565,1730487046947,-533.08543518,0.00033145,4]
[341159566,1730487046956,-500.0,0.00033145,4]
[341159567,1730487046965,-500.0,0.00033145,4]
[341159568,1730487046975,-504.99020666,0.00033147,4]
[341159569,1730487046984,-500.0,0.00033147,4]
[341159570,1730487046994,-502.58167203,0.00033147,4]
[341159571,1730487047005,-502.51397962,0.00033147,4]
[341159572,1730487047014,-500.0,0.00033147,4]
[341159573,1730487047023,-500.0,0.00033147,4]
[341159574,1730487047032,-189.41842938,0.00033147,4]
[341159575,1730487047042,-281.61756764,0.00033147,4]
[341159576,1730487047052,-500.0,0.00033147,4]
[341159577,1730487047061,-502.42782202,0.00033147,4]
[341159578,1730487047070,-501.76608478,0.00033147,4]
[341159579,1730487047079,-500.0,0.00033147,4]
[341159580,1730487047089,-504.28067982,0.00033147,4]
[341159581,1730487047098,-522.86,0.00033147,4]
[341159582,1730487047107,-500.0,0.00033147,4]
[341159583,1730487047117,-502.64031189,0.00033147,4]
[341159584,1730487047126,-500.0,0.00033147,4]
[341159585,1730487047135,-503.81853278,0.00033147,4]
[341159586,1730487047144,-500.0,0.00033147,4]
[341159587,1730487047154,-500.0,0.00033147,4]
[341159588,1730487047163,-500.0,0.00033147,4]
[341159589,1730487047178,-500.0,0.00033147,4]
[341159590,1730487047188,-500.0,0.00033147,4]
[341159591,1730487047197,-500.0,0.00033147,4]
[341159592,1730487047207,-500.0,0.00033147,4]
[341159593,1730487047216,-500.0,0.00033147,4]
[341159594,1730487047225,-500.0,0.00033147,4]
[341159595,1730487047235,-500.0,0.00033147,4]
[341159596,1730487047245,-501.26445626,0.00033147,4]
[341159597,1730487047254,-502.60467547,0.00033147,4]
[341159598,1730487047264,-500.0,0.00033147,4]
[341159599,1730487047273,-501.19199134,0.00033147,4]
[341159600,1730487047288,-500.0,0.00033147,4]
[341159601,1730487047302,-356.93186053,0.00033147,4]
[341159602,1730487047311,-500.0,0.00033147,4]
[341159603,1730487047321,-504.07791051,0.00033147,4]
[341159604,1730487047331,-511.96308228,0.00033147,4]
[341159605,1730487047342,-501.79310876,0.00033147,4]
[341159606,1730487047351,-507.54034734,0.00033147,4]
[341159607,1730487047361,-506.82563153,0.00033147,4]
[341159608,1730487047371,-500.0,0.00033147,4]
[341159609,1730487047382,-501.56800331,0.00033147,4]
[341159610,1730487047391,-500.0,0.00033147,4]
[341159611,1730487047401,-517.24187983,0.00033147,4]
[341159612,1730487047410,-508.485802,0.00033147,4]
[341159613,1730487047422,-500.0,0.00033147,4]
[341159614,1730487047432,-500.0,0.00033147,4]
[341159615,1730487047441,-500.0,0.00033147,4]
[341159616,1730487047451,-500.0,0.00033147,4]
[341159617,1730487047460,-500.0,0.00033147,4]
[341159618,1730487047470,-500.0,0.00033147,4]
[341159619,1730487047480,-500.0,0.00033147,4]
[341159620,1730487047490,-500.0,0.00033147,4]
[341159621,1730487047499,-106.50829624,0.00033147,4]
[341159622,1730487047520,-394.31778786,0.00033147,4]
[341159623,1730487047529,-28.45195346,0.00033147,4]
[341159624,1730487047540,-471.54804654,0.00033147,4]
[341159625,1730487047549,-500.0,0.00033147,4]
[341159626,1730487047559,-2039.41,0.00033147,4]
[341159627,1730487047568,-765.75,0.00033147,4]
[341159628,1730487047577,-500.0,0.00033147,4]
[341159629,1730487047586,-987.8,0.00033147,4]
[341159630,1730487047596,-500.0,0.00033147,4]
[341159631,1730487047606,-500.0,0.00033147,4]
[341159632,1730487047615,-568.50564606,0.00033147,4]
[341159633,1730487047625,-500.0,0.00033147,4]
[341159634,1730487047634,-500.0,0.00033147,4]
[341159635,1730487047644,-500.0,0.00033147,4]
[341159636,1730487047654,-500.0,0.00033147,4]
[341159637,1730487047664,-500.0,0.00033147,4]
[341159638,1730487047676,-500.0,0.00033147,4]
[341159639,1730487047697,-500.0,0.00033147,4]
[341159640,1730487047709,-477.23380652,0.00033147,4]
[341159647,1730487467546,167.137354,0.00013973,2]
[341159651,1730487940460,160.712999,0.00013973,2]
[341159700,1730488232129,-176.665217,0.00030999,2]
[341159701,1730488232139,-253.58508305,0.00032866,2]
[341159702,1730488232173,-146.41491695,0.00032866,2]
[341159703,1730488232182,-353.61508305,0.00032866,2]
[341159744,1730488240324,-46.38491695,0.00032866,2]
[341159745,1730488240334,-6853.61508305,0.00032867,2]
[341159746,1730488240345,-222.25584436,0.00032867,2]
[341159747,1730488240355,-513.09943383,0.00032877,120]
[341159748,1730488240369,-265.15001017,0.00032877,120]
[341159749,1730488240379,-214.1427604,0.00032959,2]
[341159750,1730488240388,-523.12418597,0.00033039,2]
[341159751,1730488240399,-232.92133391,0.00033039,2]
[341159752,1730488240409,-177.00842217,0.00033039,2]
[341159753,1730488240419,-7075.87092741,0.00033088,2]
[341159754,1730488240428,-176.665217,0.00033112,2]
[341159755,1730488240437,-179.09,0.0003313,3]
[341159756,1730488240446,-564.86,0.0003313,10]
[341159757,1730488240455,-500.0,0.00033138,4]
[341159758,1730488240465,-928.47,0.00033138,4]
[341159759,1730488240474,-500.0,0.00033138,4]
[341159760,1730488240484,-500.0,0.00033138,4]
[341159761,1730488240493,-500.0,0.00033138,4]
[341159762,1730488240503,-4284.75,0.00033138,4]
[341159763,1730488240512,-500.0,0.00033138,4]
[341159764,1730488240522,-5000.0,0.00033138,120]
[341159765,1730488240531,-5000.0,0.00033138,120]
[341159766,1730488240540,-5676.24,0.00033138,3]
[341159767,1730488240549,-1554.99,0.00033138,4]
[341159768,1730488240558,-769.47,0.00033138,4]
[341159769,1730488240567,-500.0,0.00033138,7]
[341159770,1730488240576,-283.30076014,0.00033138,7]
[341159771,1730488240585,-361.8803236,0.00033138,2]
[341159772,1730488240594,-316.55306837,0.00033138,7]
[341159773,1730488240604,-168.45138319,0.00033138,7]
[341159774,1730488240616,-500.0,0.00033139,4]
[341159775,1730488240625,-500.0,0.00033139,4]
[341159776,1730488240635,-500.0,0.00033139,4]
[341159777,1730488240645,-510.15,0.00033139,4]
[341159778,1730488240654,-500.0,0.00033139,4]
[341159779,1730488240663,-500.0,0.00033139,4]
[341159780,1730488240673,-500.0,0.00033139,4]
[341159781,1730488240682,-500.0,0.00033139,4]
[341159782,1730488240691,-500.0,0.00033139,4]
[341159783,1730488240701,-500.0,0.00033139,4]
[341159784,1730488240710,-500.0,0.00033139,4]
[341159785,1730488240720,-500.0,0.00033139,4]
[341159786,1730488240730,-928.64,0.00033139,4]
[341159787,1730488240739,-500.0,0.00033139,4]
[341159788,1730488240753,-500.0,0.00033139,4]
[341159789,1730488240763,-4537.88,0.00033139,4]
[341159790,1730488240772,-500.0,0.00033139,4]
[341159791,1730488240781,-500.0,0.00033139,4]
[341159792,1730488240790,-1309.69,0.00033139,4]
[341159793,1730488240800,-5000.0,0.00033139,120]
[341159794,1730488240809,-5000.0,0.00033139,120]
[341159795,1730488240820,-1498.83709766,0.00033139,120]
[341159796,1730488240829,-916.88,0.00033139,4]
[341159797,1730488240838,-974.49,0.00033139,4]
[341159798,1730488240848,-500.0,0.00033139,4]
[341159799,1730488240857,-659.56,0.00033139,4]
[341159800,1730488240870,-205.37709118,0.00033139,7]
[341159801,1730488240879,-500.0,0.00033139,7]
[341159802,1730488240889,-172.26542546,0.00033139,7]
[341159803,1730488240898,-500.0,0.00033139,4]
[341159804,1730488240907,-500.0,0.0003314,4]
[341159805,1730488240917,-500.0,0.0003314,4]
[341159806,1730488240927,-501.5446585,0.0003314,4]
[341159807,1730488240936,-500.0,0.0003314,4]
[341159808,1730488240946,-500.0,0.0003314,4]
[341159809,1730488240955,-273.8894821,0.0003314,4]
[341159810,1730488240965,-500.0,0.0003314,4]
[341159811,1730488240974,-500.0,0.0003314,4]
[341159812,1730488240983,-500.0,0.0003314,4]
[341159813,1730488240994,-423.05507391,0.0003314,4]
[341159814,1730488241003,-500.0,0.0003314,4]
[341159815,1730488241012,-500.0,0.0003314,4]
[341159816,1730488241022,-500.0,0.0003314,2]
[341159817,1730488241031,-500.0,0.0003314,4]
[341159818,1730488241040,-500.0,0.0003314,4]
[341159819,1730488241050,-500.0,0.0003314,4]
[341159820,1730488241059,-500.0,0.0003314,4]
[341159821,1730488241068,-300.0,0.0003314,4]
[341159822,1730488241077,-500.0,0.0003314,4]
[341159823,1730488241086,-500.0,0.0003314,4]
[341159824,1730488241095,-500.0,0.0003314,4]
[341159825,1730488241104,-240.27301148,0.0003314,4]
[341159826,1730488241117,-500.0,0.0003314,4]
[341159827,1730488241126,-500.0,0.0003314,4]
[341159828,1730488241135,-1483.41,0.0003314,120]
[341159829,1730488241145,-500.0,0.0003314,4]
[341159830,1730488241154,-500.0,0.0003314,4]
[341159831,1730488241163,-500.0,0.0003314,4]
[341159832,1730488241173,-500.0,0.0003314,4]
[341159833,1730488241182,-500.0,0.0003314,4]
[341159834,1730488241191,-500.0,0.0003314,4]
[341159835,1730488241200,-500.0,0.0003314,4]
[341159836,1730488241209,-501.67857467,0.0003314,4]
[341159837,1730488241218,-500.0,0.0003314,4]
[341159838,1730488241228,-500.0,0.0003314,4]
[341159839,1730488241237,-500.0,0.0003314,4]
[341159840,1730488241246,-500.0,0.0003314,4]
[341159841,1730488241256,-500.0,0.0003314,4]
[341159842,1730488241265,-583.52431822,0.0003314,4]
[341159843,1730488241274,-500.0,0.0003314,4]
[341159844,1730488241283,-500.0,0.0003314,4]
[341159845,1730488241293,-500.0,0.0003314,4]
[341159846,1730488241303,-500.0,0.0003314,4]
[341159847,1730488241312,-992.54,0.0003314,4]
[341159848,1730488241321,-509.41385329,0.0003314,4]
[341159849,1730488241330,-502.66061074,0.0003314,4]
[341159850,1730488241339,-503.42407765,0.0003314,4]
[341159851,1730488241348,-484.14768782,0.0003314,4]
[341159852,1730488241357,-500.0,0.0003314,4]
[341159853,1730488241370,-500.0,0.0003314,4]
[341159854,1730488241379,-500.0,0.0003314,4]
[341159855,1730488241388,-500.0,0.0003314,4]
[341159856,1730488241397,-501.2710608,0.0003314,4]
[341159857,1730488241407,-500.0,0.0003314,4]
[341159858,1730488241515,-299.26759721,0.0003314,4]
[341159859,1730488241530,-500.0,0.0003314,4]
[341159860,1730488241539,-500.0,0.0003314,4]
[341159861,1730488241549,-501.70082091,0.0003314,4]
[341159862,1730488241557,-500.0,0.0003314,4]
[341159863,1730488241566,-500.0,0.0003314,4]
[341159864,1730488241575,-500.0,0.0003314,4]
[341159865,1730488241585,-511.2470745,0.0003314,4]
[341159866,1730488241594,-503.26696977,0.0003314,4]
[341159867,1730488241604,-500.0,0.0003314,4]
[341159868,1730488241616,-500.0,0.0003314,4]
[341159869,1730488241625,-500.0,0.0003314,4]
[341159870,1730488241634,-642.11,0.0003314,4]
[341159871,1730488241643,-500.0,0.0003314,4]
[341159872,1730488241653,-501.5431987,0.0003314,4]
[341159873,1730488241662,-500.0,0.0003314,4]
[341159874,1730488241672,-533.38,0.0003314,4]
[341159875,1730488241681,-502.11619008,0.0003314,4]
[341159876,1730488241691,-1042.77,0.0003314,4]
[341159877,1730488241700,-500.0,0.0003314,4]
[341159878,1730488241710,-500.0,0.0003314,4]
[341159879,1730488241719,-408.79805477,0.0003314,4]
[341159880,1730488241728,-500.0,0.0003314,4]
[341159881,1730488241738,-504.20664865,0.0003314,4]
[341159882,1730488241748,-500.0,0.0003314,4]
[341159883,1730488241758,-572.64261278,0.0003314,4]
[341159884,1730488241767,-423.43053749,0.0003314,4]
[341159885,1730488241776,-500.0,0.0003314,4]
[341159886,1730488241785,-500.0,0.0003314,4]
[341159887,1730488241794,-500.0,0.0003314,4]
[341159888,1730488241803,-500.0,0.0003314,4]
[341159889,1730488241812,-500.0,0.0003314,4]
[341159890,1730488241821,-500.0,0.0003314,4]
[341159891,1730488241830,-500.0,0.0003314,4]
[341159892,1730488241840,-1003.91,0.0003314,4]
[341159893,1730488241848,-500.0,0.0003314,4]
[341159894,1730488241857,-532.91,0.0003314,4]
[341159895,1730488241869,-500.0,0.0003314,4]
[341159896,1730488241879,-500.0,0.0003314,4]
[341159897,1730488241888,-500.0,0.0003314,4]
[341159898,1730488241897,-500.0,0.0003314,4]
[341159899,1730488241907,-158.77191366,0.0003314,4]
[341159900,1730488241916,-500.0,0.0003314,4]
[341159901,1730488241925,-500.0,0.0003314,4]
[341159902,1730488241934,-500.0,0.0003314,4]
[341159903,1730488241944,-354.51537615,0.0003314,4]
[341159904,1730488241953,-500.0,0.0003314,4]
[341159905,1730488241963,-500.0,0.0003314,4]
[341159906,1730488241971,-500.0,0.0003314,4]
[341159907,1730488241981,-500.0,0.0003314,4]
[341159908,1730488241991,-500.0,0.00033141,4]
[341159909,1730488242000,-500.0,0.00033142,4]
[341159910,1730488242011,-500.0,0.00033142,4]
[341159911,1730488242021,-1954.43,0.00033142,4]
[341159912,1730488242031,-733.85,0.00033142,4]
[341159913,1730488242043,-500.0,0.00033142,4]
[341159914,1730488242051,-967.48,0.00033142,4]
[341159915,1730488242060,-500.0,0.00033142,4]
[341159916,1730488242070,-500.0,0.00033142,4]
[341159917,1730488242079,-500.0,0.00033142,4]
[341159918,1730488242088,-500.0,0.00033142,4]
[341159919,1730488242100,-500.0,0.00033142,4]
[341159920,1730488242111,-500.0,0.00033144,4]
[341159921,1730488242133,-500.0,0.00033144,4]
[341159922,1730488242142,-500.0,0.00033144,4]
[341159923,1730488242151,-500.0,0.00033144,4]
[341159924,1730488242161,-500.0,0.00033144,4]
[341159925,1730488242172,-500.0,0.00033144,4]
[341159926,1730488242182,-500.0,0.00033144,4]
[341159927,1730488242191,-500.0,0.00033144,4]
[341159928,1730488242200,-500.0,0.00033144,4]
[341159929,1730488242210,-500.0,0.00033144,4]
[341159930,1730488242219,-500.0,0.00033144,4]
[341159931,1730488242228,-500.0,0.00033144,4]
[341159932,1730488242237,-500.0,0.00033144,4]
[341159933,1730488242246,-500.69750789,0.00033144,4]
[341159934,1730488242257,-500.0,0.00033144,4]
[341159935,1730488242266,-500.0,0.00033144,4]
[341159936,1730488242276,-500.0,0.00033144,4]
[341159937,1730488242285,-500.0,0.00033144,4]
[341159938,1730488242294,-500.0,0.00033144,4]
[341159939,1730488242303,-500.97760822,0.00033144,4]
[341159940,1730488242313,-503.40638588,0.00033144,4]
[341159941,1730488242322,-500.0,0.00033144,4]
[341159942,1730488242331,-500.77028733,0.00033144,4]
[341159943,1730488242340,-498.13824609,0.00033144,4]
[341159944,1730488242349,-500.43055943,0.00033144,4]
[341159945,1730488242359,-500.0,0.00033144,4]
[341159946,1730488242371,-524.31384625,0.00033144,4]
[341159947,1730488242380,-500.0,0.00033144,4]
[341159948,1730488242390,-503.18909694,0.00033144,4]
[341159949,1730488242398,-500.0,0.00033144,4]
[341159950,1730488242408,-512.87725354,0.00033144,4]
[341159951,1730488242417,-500.0,0.00033144,4]
[341159952,1730488242426,-500.0,0.00033144,4]
[341159953,1730488242435,-500.0,0.00033144,4]
[341159954,1730488242444,-506.67717453,0.00033144,4]
[341159955,1730488242453,-505.59435837,0.00033144,4]
[341159956,1730488242463,-500.0,0.00033144,4]
[341159957,1730488242472,-500.0,0.00033144,4]
[341159959,1730488242481,-500.0,0.00033144,4]
[341159960,1730488242492,-500.0,0.00033144,4]
[341159962,1730488242501,-500.0,0.00033144,4]
[341159964,1730488242510,-500.0,0.00033144,4]
[341159965,1730488242519,-500.0,0.00033144,4]
[341159967,1730488242528,-500.0,0.00033144,4]
[341159968,1730488242538,-500.0,0.00033144,4]
[341159969,1730488242547,-500.0,0.00033144,4]
[341159970,1730488242557,-500.0,0.00033144,4]
[341159971,1730488242566,-500.0,0.00033144,4]
[341159972,1730488242575,-500.0,0.00033144,4]
[341159973,1730488242584,-500.0,0.00033144,4]
[341159974,1730488242594,-500.0,0.00033144,4]
[341159975,1730488242603,-500.0,0.00033144,4]
[341159978,1730488242615,-530.73660133,0.00033144,4]
[341159979,1730488242624,-500.0,0.00033144,4]
[341159980,1730488242634,-503.55059547,0.00033144,4]
[341159981,1730488242643,-501.3037875,0.00033144,4]
[341159982,1730488242652,-500.0,0.00033144,4]
[341159983,1730488242661,-500.0,0.00033144,4]
[341159984,1730488242670,-500.0,0.00033144,4]
[341159985,1730488242679,-500.0,0.00033144,4]
[341159986,1730488242689,-500.0,0.00033144,4]
[341159987,1730488242698,-500.0,0.00033144,4]
[341159988,1730488242708,-521.59658965,0.00033144,4]
[341159989,1730488242717,-500.0,0.00033144,4]
[341159990,1730488242727,-500.90247446,0.00033144,4]
[341159991,1730488242736,-500.0,0.00033144,4]
[341159992,1730488242749,-500.0,0.00033144,4]
[341159993,1730488242758,-500.0,0.00033144,4]
[341159994,1730488242767,-500.98375059,0.00033144,4]
[341159995,1730488242776,-501.07237061,0.00033144,4]
[341159996,1730488242787,-500.0,0.00033144,4]
[341159997,1730488242796,-500.0,0.00033144,4]
[341159998,1730488242805,-500.0,0.00033144,4]
[341159999,1730488242814,-505.10826291,0.00033144,4]
[341160000,1730488242824,-637.05340763,0.00033144,4]
[341160002,1730488242833,-500.0,0.00033144,4]
[341160003,1730488242842,-501.58794919,0.00033144,4]
[341160005,1730488242852,-508.33730598,0.00033144,4]
[341160007,1730488242861,-500.0,0.00033144,4]
[341160009,1730488242873,-502.9004759,0.00033144,4]
[341160011,1730488242883,-509.91823727,0.00033144,4]
[341160013,1730488242892,-500.0,0.00033144,4]
[341160014,1730488242901,-500.0,0.00033144,4]
[341160015,1730488242910,-500.0,0.00033144,4]
[341160016,1730488242919,-435.85726154,0.00033144,4]
[341160017,1730488242928,-500.0,0.00033144,4]
[341160018,1730488242937,-500.0,0.00033144,4]
[341160019,1730488242948,-505.35252905,0.00033144,4]
[341160020,1730488242958,-501.8342484,0.00033144,4]
[341160021,1730488242968,-500.0,0.00033144,4]
[341160024,1730488242978,-500.0,0.00033144,4]
[341160026,1730488242987,-500.0,0.00033144,4]
[341160028,1730488242996,-515.48858491,0.00033144,4]
[341160030,1730488243006,-500.0,0.00033144,4]
[341160032,1730488243015,-500.0,0.00033144,4]
[341160034,1730488243024,-502.65966867,0.00033144,4]
[341160036,1730488243033,-500.0,0.00033144,4]
[341160038,1730488243042,-502.70236609,0.00033144,4]
[341160040,1730488243051,-500.0,0.00033144,4]
[341160042,1730488243062,-500.0,0.00033144,4]
[341160044,1730488243071,-569.44010916,0.00033144,4]
[341160046,1730488243080,-500.0,0.00033144,4]
[341160048,1730488243089,-500.0,0.00033144,4]
[341160050,1730488243099,-500.0,0.00033144,4]
[341160052,1730488243108,-501.50821653,0.00033144,4]
[341160054,1730488243119,-500.0,0.00033144,4]
[341160056,1730488243128,-501.52376611,0.00033144,4]
[341160058,1730488243137,-500.0,0.00033144,4]
[341160060,1730488243146,-501.96018057,0.00033145,4]
[341160062,1730488243156,-501.66936704,0.00033145,4]
[341160064,1730488243167,-500.0,0.00033145,4]
[341160066,1730488243177,-525.45334945,0.00033145,4]
[341160069,1730488243188,-572.50621666,0.00033145,4]
[341160070,1730488243197,-500.0,0.00033145,4]
[341160073,1730488243207,-372.13540267,0.00033145,4]
[341160075,1730488243217,-500.0,0.00033145,4]
[341160077,1730488243227,-500.0,0.00033145,4]
[341160079,1730488243237,-519.13390996,0.00033145,4]
[341160081,1730488243248,-502.79072385,0.00033145,4]
[341160083,1730488243259,-501.53042447,0.00033145,4]
[341160085,1730488243269,-501.83951635,0.00033145,4]
[341160087,1730488243280,-510.03369356,0.00033145,4]
[341160090,1730488243290,-502.67302397,0.00033145,4]
[341160092,1730488243300,-505.70229512,0.00033145,4]
[341160094,1730488243309,-155.76838395,0.00033145,4]
[341160096,1730488243318,-500.0,0.00033145,4]
[341160098,1730488243327,-322.0,0.00033145,4]
[341160100,1730488243337,-514.26931096,0.00033145,4]
[341160102,1730488243346,-500.0,0.00033145,4]
[341160104,1730488243357,-525.90336698,0.00033145,4]
[341160106,1730488243370,-500.0,0.00033145,4]
[341160108,1730488243379,-500.0,0.00033145,4]
[341160110,1730488243389,-509.66415197,0.00033145,4]
[341160112,1730488243398,-506.4763255,0.00033145,4]
[341160114,1730488243407,-286.70378259,0.00033145,4]
[341160116,1730488243416,-519.95729218,0.00033145,4]
[341160118,1730488243426,-505.42851573,0.00033145,4]
[341160120,1730488243435,-500.0,0.00033145,4]
[341160122,1730488243444,-504.23664352,0.00033145,4]
[341160124,1730488243453,-500.0,0.00033145,4]
[341160126,1730488243463,-263.42179576,0.00033145,4]
[341160128,1730488243472,-507.05027218,0.00033145,4]
[341160130,1730488243482,-507.6500437,0.00033145,4]
[341160132,1730488243491,-506.85922238,0.00033145,4]
[341160134,1730488243501,-504.48798814,0.00033145,4]
[341160136,1730488243510,-506.45055827,0.00033145,4]
[341160138,1730488243519,-505.38738292,0.00033145,4]
[341160140,1730488243528,-507.90159165,0.00033145,4]
[341160142,1730488243538,-342.15863414,0.00033145,4]
[341160144,1730488243548,-178.9455526,0.00033145,4]
[341160146,1730488243557,-504.15939463,0.00033145,4]
[341160148,1730488243566,-350.35858868,0.00033146,4]
[341160150,1730488243576,-500.0,0.00033173,5]
[341160152,1730488243586,-500.0,0.00033173,2]
[341160154,1730488243595,-500.0,0.00033173,5]
[341160156,1730488243607,-500.0,0.00033173,5]
[341160158,1730488243618,-500.0,0.00033173,5]
[341160160,1730488243628,-500.0,0.00033173,5]
[341160162,1730488243638,-500.0,0.00033173,5]
[341160164,1730488243648,-500.0,0.00033173,2]
[341160166,1730488243659,-177.18067561,0.00033173,5]
[341160168,1730488243671,-500.0,0.00033412,4]
[341160171,1730488243683,-928.47,0.00033412,4]
[341160173,1730488243695,-500.0,0.00033412,4]
[341160175,1730488243704,-500.0,0.00033412,4]
[341160177,1730488243714,-500.0,0.00033412,4]
[341160179,1730488243724,-4284.75,0.00033412,4]
[341160181,1730488243733,-500.0,0.00033412,4]
[341160182,1730488243746,-5676.24,0.00033412,3]
[341160185,1730488243757,-1554.99,0.00033412,4]
[341160187,1730488243768,-769.47,0.00033412,4]
[341160189,1730488243778,-500.0,0.00033413,4]
[341160191,1730488243788,-510.15,0.00033413,4]
[341160193,1730488243797,-500.0,0.00033413,4]
[341160195,1730488243807,-500.0,0.00033413,4]
[341160197,1730488243816,-500.0,0.00033413,4]
[341160199,1730488243825,-928.64,0.00033413,4]
[341160201,1730488243835,-500.0,0.00033413,4]
[341160203,1730488243845,-487.60065424,0.00033413,4]
[341160205,1730488243854,-4537.88,0.00033413,4]
[341160206,1730488243863,-500.0,0.00033413,4]
[341160208,1730488243873,-500.0,0.00033413,4]
[341160210,1730488243882,-1309.69,0.00033413,4]
[341160212,1730488243891,-916.88,0.00033413,4]
[341160214,1730488243901,-974.49,0.00033413,4]
[341160216,1730488243911,-659.56,0.00033413,4]
[341160218,1730488243921,-500.0,0.00033413,4]
[341160221,1730488243931,-500.0,0.00033414,4]
[341160223,1730488243940,-500.0,0.00033414,4]
[341160225,1730488243950,-606.79191228,0.00033414,4]
[341160227,1730488243960,-213.17731312,0.00033414,4]
[341160229,1730488243970,-500.0,0.00033414,4]
[341160231,1730488243979,-600.0,0.00033414,2]
[341160233,1730488243989,-500.0,0.00033414,2]
[341160235,1730488243999,-500.0,0.00033414,4]
[341160237,1730488244009,-1483.41,0.00033414,120]
[341160239,1730488244019,-500.0,0.00033414,4]
[341160241,1730488244028,-500.0,0.00033414,4]
[341160243,1730488244037,-992.54,0.00033414,4]
[341160244,1730488244046,-252.41908798,0.00033414,4]
[341160245,1730488244056,-500.0,0.00033414,4]
[341160246,1730488244065,-500.0,0.00033414,4]
[341160247,1730488244074,-500.0,0.00033414,4]
[341160248,1730488244084,-533.38,0.00033414,4]
[341160249,1730488244092,-1042.77,0.00033414,4]
[341160250,1730488244101,-500.0,0.00033414,4]
[341160251,1730488244110,-500.0,0.00033414,4]
[341160252,1730488244121,-500.0,0.00033414,4]
[341160253,1730488244130,-1003.91,0.00033414,4]
[341160254,1730488244139,-500.0,0.00033414,4]
[341160255,1730488244149,-532.91,0.00033414,4]
[341160256,1730488244158,-500.0,0.00033414,4]
[341160258,1730488244167,-500.0,0.00033414,4]
[341160260,1730488244176,-500.0,0.00033414,4]
[341160262,1730488244185,-500.0,0.00033414,4]
[341160264,1730488244194,-500.0,0.00033414,4]
[341160266,1730488244204,-500.0,0.00033414,4]
[341160268,1730488244213,-500.0,0.00033414,4]
[341160270,1730488244222,-500.0,0.00033414,4]